Cogmind - Beta 12 @@@ ROGUE MODE // 2023.12.02 @ 18:50:00 Player: charson Result: Destroyed by G-34 Mercenary with Small Laser Performance ------------- Evolutions (1) 500 Regions Visited (3) 600 Robots Destroyed (41) 205 Value Destroyed (788) 788 Prototype IDs (4) 80 Alien Tech Used (0) 0 Bonus (-129) -129 TOTAL SCORE: 2044 Bonus ------- Friendly Fire -129 Cogmind --------- Core Integrity 0/400 Matter 300/300 Energy 125/125 System Corruption 0% Temperature Cool (14) Movement Core (100) Ox1 Location -9/Materials Parts ------- > --- POWER (1) -------- Light Ion Engine > --- PROPULSION (2) --- (None) > --- UTILITY (4) ------ Small Storage Unit Weight Redist. System Machine Analyzer Light Armor Plating > --- WEAPON (2) ------- Light Assault Rifle Improved Assault Rifle > --- INVENTORY (8) ---- Light Nuclear Core High-capacity Matter Pod (200) Hacking Suite Heavy Assault Rifle Heavy Assault Rifle Mini Grenade Launcher Maul Peak State ------------ > --- POWER ------------ Light Ion Engine > --- PROPULSION ------- (None) > --- UTILITY ---------- Small Storage Unit Weight Redist. System Machine Analyzer Improved Terrain Scanner > --- WEAPON ----------- Improved Assault Rifle Improved Assault Rifle > --- INVENTORY -------- Light Ion Engine High-capacity Matter Pod Weight Redist. System Light Assault Rifle Light Assault Rifle Heavy Assault Rifle Mini Grenade Launcher Maul [Rating: 17] Favorites ----------- Power Ion Engine Engine Ion Engine Propulsion None Utility Small Storage Unit Device Improved Terrain Scanner Storage Small Storage Unit Processor Machine Analyzer Protection Light Armor Plating Weapon Light Assault Rifle Energy Gun EM Pulse Gun Ballistic Gun Light Assault Rifle Build | -11 -10 -10 -9 ------- Run | Jun Mat Min Mat Slots Evolved 2 | . . . 2 Power . | . . . . Propulsion . | . . . . Utility 2 | . . . 2 Weapon . | . . . . Parts Attached 39 | 5 7 6 21 Power 9 | 1 2 2 4 Engine 9 | 1 2 2 4 Core . | . . . . Reactor . | . . . . Propulsion . | . . . . Treads . | . . . . Leg . | . . . . Wheel . | . . . . Hover . | . . . . Flight . | . . . . Utility 12 | 2 . 1 9 Device 7 | 1 . 1 5 Storage 1 | 1 . . . Processor 2 | . . . 2 Hackware . | . . . . Protection 2 | . . . 2 Artifact . | . . . . Weapon 18 | 2 5 3 8 Energy Gun 6 | 1 2 3 . Energy Cannon . | . . . . Ballistic Gun 12 | 1 3 . 8 Ballistic Cannon . | . . . . Launcher . | . . . . Special Weapon . | . . . . Impact Weapon . | . . . . Slashing Weapon . | . . . . Piercing Weapon . | . . . . Special Melee Weapon . | . . . . Unidentified Prototypes 2 | . . . 2 Corrupted Parts 1 | . . 1 . System Corruption 1 | . . 1 . Parts Lost 12 | . . 3 9 Power 3 | . . 2 1 Propulsion . | . . . . Utility 5 | . . . 5 Weapon 4 | . . 1 3 Highest Loss Streak 5 | . . 3 5 To Critical Strikes . | . . . . Average Slot Usage (%) 59 | . 62 53 61 Engine 8 | . 13 12 4 Device 12 | . 6 12 14 Storage 12 | . 14 14 11 Processor 4 | . . . 7 Protection 1 | . . . 2 Energy Gun 5 | . 13 12 . Ballistic Gun 15 | . 13 2 21 Naked Turns . | . . . . Heaviest Build 15 | 15 15 14 15 Greatest Support 9 | 3 3 3 9 Greatest Overweight (x) 4 | 4 4 4 4 Average Overweight (x) 2 | 3 3 2 1 Largest Inventory Capacity 8 | 8 8 8 8 Average Capacity 7 | 7 8 8 8 Most Carried 8 | 3 5 6 8 Average Carried 5 | 1 3 5 7 Final Capacity 8 | 8 8 8 8 Final Carried 7 | 3 5 6 7 Class Distribution -------------------- 83% | Mutant 16% | Scavenger-Mutant Dominant Class ---------------- Mutant | -10/Materials Mutant | -10/Mines Mutant | -9/Materials Resources | -11 -10 -10 -9 ----------- Run | Jun Mat Min Mat Matter Collected 1218 | 268 64 312 574 Remotely . | . . . . Salvage Created 1667 | 114 179 178 1196 Parts 96 | 8 7 14 67 Haulers Intercepted 4 | . 1 . 3 Recyclers Shooed 1 | . 1 . . Parts Field Recycled . | . . . . Retrieved Matter . | . . . . Parts Self-Destructed . | . . . . Prevented . | . . . . Kills | -11 -10 -10 -9 ------- Run | Jun Mat Min Mat Combat Hostiles Destroyed 22 | . . 3 19 Guns 22 | . . 3 19 Classes Destroyed 11 | 2 1 2 6 Worker 3 | . . . 3 Tunneler 4 | 2 . 1 1 Hauler 4 | . 1 . 3 Recycler 5 | 1 2 . 2 Mechanic 1 | . . . 1 Operator 1 | . . . 1 Watcher 1 | . . . 1 Swarmer 6 | . . . 6 Grunt 10 | . . 2 8 Sentry 5 | . . . 5 Assembled 1 | . . 1 . Thug 1 | . . 1 . Best Kill Streak 6 | 2 2 2 6 Combat Bots Only 5 | . . 2 5 Max Kills in Single Turn 2 | 1 1 1 2 Gunslinging . | . . . . Exploded . | . . . . Melee . | . . . . Uniques/NPCs Destroyed . | . . . . Combat | -11 -10 -10 -9 -------- Run | Jun Mat Min Mat Damage Taken 1603 | . 32 178 1393 Core 441 | . . 38 403 Absorbed by Shields . | . . . . Core Remaining (%) 92 | 100 . 84 . Volleys Fired 130 | 6 7 10 107 Largest 2 | 2 2 2 2 Hottest 60 | 60 60 60 46 Shots Fired 255 | 12 14 18 211 Gun 255 | 12 14 18 211 Cannon . | . . . . Launcher . | . . . . Special . | . . . . Kinetic 231 | 6 7 7 211 Thermal 4 | . . 4 . Explosive . | . . . . Electromagnetic 20 | 6 7 7 . Robot Hit Streak 23 | 4 5 9 23 Robot Miss Streak 4 | 3 1 2 4 Penetration Max . | . . . . Secondary Targets 4 | . . 1 3 Max Gunslinging Chain 1 | . . 1 1 Shots Hit Robots 177 | 6 11 12 148 Core Hits 77 | 3 6 6 62 Critical Kills 1 | . . . 1 Critical Parts Destroyed 1 | . . . 1 Critical Strikes 2 | . . . 2 Destroy 2 | . . . 2 Melee Attacks . | . . . . Impact . | . . . . Slashing . | . . . . Piercing . | . . . . Sneak Attacks . | . . . . Combat Hostiles . | . . . . Follow-up Attacks . | . . . . Damage Inflicted 2089 | 86 173 189 1641 Guns 2061 | 86 145 189 1641 Cannons . | . . . . Explosions 28 | . 28 . . Melee . | . . . . Ramming . | . . . . Kinetic 1818 | 28 80 69 1641 Thermal 52 | . 28 24 . Explosive . | . . . . Electromagnetic 219 | 58 65 96 . Impact . | . . . . Slashing . | . . . . Piercing . | . . . . Highest Corruption 1 | . . 1 . Average Corruption 1 | . . 1 . Corruption Purged . | . . . . Corruption Blocked . | . . . . Effects 5 | . . 5 . Message Errors 1 | . . 1 . Matter Fused 2 | . . 2 . Data Loss (minor) 1 | . . 1 . Misfires 1 | . . 1 . Overload Shots . | . . . . Overflow Damage . | . . . . Projectiles . | . . . . Explosions . | . . . . Melee . | . . . . Knockbacks . | . . . . Impact . | . . . . Kinetic . | . . . . Secondary . | . . . . Self-Inflicted Damage 32 | . 32 . . Shots 1 | . 1 . . Rammed . | . . . . Targets Rammed . | . . . . Kicked . | . . . . Crushed . | . . . . Highest Temperature 42 | . 12 42 22 Average Temperature 9 | . 12 22 4 Received Heat Transfer 684 | . . 99 585 Siege Activations . | . . . . Robots Corrupted . | . . . . Combat Hostiles . | . . . . Parts Fried . | . . . . Impact Corruptions . | . . . . Robots Melted . | . . . . Combat Hostiles . | . . . . Parts Melted 2 | . . 2 . Heat Transferred 100 | . 50 50 . Parts Sabotaged . | . . . . Parts Stolen . | . . . . Parts Stripped . | . . . . Power Chain Reactions 1 | . 1 . . Missiles Intercepted . | . . . . Alert | -11 -10 -10 -9 ------- Run | Jun Mat Min Mat Peak Influence 347 | 15 52 45 347 Initial 9 | . 9 . . Average 63 | 8 30 34 95 Maximum Alert Level 1 | . . . 1 Low Security (%) 94 | 100 100 100 90 Level 1 5 | . . . 9 Level 2 . | . . . . Level 3 . | . . . . Level 4 . | . . . . Level 5 . | . . . . High Security . | . . . . Max Security . | . . . . Squads Dispatched 2 | . 1 . 1 Investigation 1 | . 1 . . Extermination . | . . . . Reinforcement 1 | . . . 1 Assault . | . . . . Garrison . | . . . . Intercept . | . . . . Searches Triggered . | . . . . Construction Impeded . | . . . . Haulers Reinforced . | . . . . Active Scanning Responses . | . . . . Cargo Convoy Interrupts . | . . . . Stealth | -11 -10 -10 -9 --------- Run | Jun Mat Min Mat Distress Signals 1 | . . . 1 Communications Jammed . | . . . . Distress Signals . | . . . . Times Spotted 30 | . 2 4 24 Peak Tracking Total 5 | . 2 3 5 Tactical Retreats 3 | . . . 3 Traps | -11 -10 -10 -9 ------- Run | Jun Mat Min Mat Traps Triggered 4 | . 4 . . Indirectly . | . . . . Trap Hack Attempts . | . . . . Triggered . | . . . . Disarmed . | . . . . Reprogrammed . | . . . . Reused . | . . . . Traps Extracted . | . . . . Installed . | . . . . Triggered . | . . . . Machines | -11 -10 -10 -9 ---------- Run | Jun Mat Min Mat Machines Disabled 1 | . 1 . . Max in Single Turn 1 | . 1 . . Machines Repaired . | . . . . Machines Sabotaged . | . . . . Overloaded Fab Kills . | . . . . Hacking | -11 -10 -10 -9 --------- Run | Jun Mat Min Mat Machines Accessed 10 | . 3 1 6 Terminals 8 | . 2 . 6 Fabricators . | . . . . Repair Stations . | . . . . Recycling Units 1 | . 1 . . Scanalyzers . | . . . . Garrison Access . | . . . . Total Hacks 25 | . 7 1 17 Successful 8 | . 2 1 5 Failed 16 | . 5 . 11 Catastrophic 7 | . 2 . 5 Database Lockouts 1 | . . . 1 Manual 19 | . 6 . 13 Terminals 22 | . 5 . 17 Fabricators . | . . . . Repair Stations . | . . . . Recycling Units 2 | . 2 . . Scanalyzers . | . . . . Garrison Access . | . . . . Terminal Hacks 5 | . . 1 4 Robot Analysis 1 | . . . 1 Prototype ID Bank 1 | . . . 1 Open Door 1 | . . 1 . Emergency Access Points 1 | . . . 1 Locate Traps 1 | . . . 1 Fabricator Hacks . | . . . . Repair Station Hacks . | . . . . Recycling Unit Hacks . | . . . . Scanalyzer . | . . . . Garrison Access Hacks . | . . . . Unauthorized Hacks 3 | . 2 . 1 Terminals 2 | . 1 . 1 Botnet 2 | . 1 . 1 Fabricators . | . . . . Repair Stations . | . . . . Recycling Units 1 | . 1 . . Reject 1 | . 1 . . Scanalyzers . | . . . . Garrison Access . | . . . . Data Cores Recovered . | . . . . Used . | . . . . Hacking Detections 9 | . 3 . 6 Full Trace Events 1 | . 1 . . Feedback Events . | . . . . Feedback Blocked . | . . . . Robot Schematics Acquired . | . . . . Robots Built . | . . . . Authchips . | . . . . Time . | . . . . Total Robot Build Rating . | . . . . Part Schematics Acquired . | . . . . Parts Built . | . . . . Authchips . | . . . . Time . | . . . . Total Part Build Rating . | . . . . Parts Repaired . | . . . . Time . | . . . . Parts Recycled . | . . . . Recycled Matter . | . . . . Retrieved Matter . | . . . . Retrieved Components . | . . . . Parts Scanalyzed . | . . . . Part Schematics Acquired . | . . . . Parts Damaged . | . . . . Bothacking | -11 -10 -10 -9 ------------ Run | Jun Mat Min Mat Used RIF Installer . | . . . . Robots Hacked . | . . . . Non-combat . | . . . . Combat . | . . . . Robot Hacks Applied . | . . . . Relay Couplers Released . | . . . . Fabnet Peak Effective % . | . . . . Robots Rewired . | . . . . Allies Hacked . | . . . . Hacks Repelled . | . . . . Allies | -11 -10 -10 -9 -------- Run | Jun Mat Min Mat Total Allies 1 | . . 1 . Largest Group 1 | . . 1 . Highest-Rated Group 31 | . . 31 . Highest-Rated Ally 31 | . . 31 . Total Orders . | . . . . Ally Attacks 4 | . . 4 . Total Damage 20 | . . 20 . Kills . | . . . . Allies Corrupted . | . . . . Allies Melted . | . . . . Intel | -11 -10 -10 -9 ------- Run | Jun Mat Min Mat Robot Analysis Total 1 | . . . 1 Derelict Logs Recovered 1 | . . 1 . Drone Launches . | . . . . Drone Recoveries . | . . . . Exploration | -11 -10 -10 -9 ------------- Run | Jun Mat Min Mat Turns Passed 2180 | 142 422 494 1122 Spaces Moved 913 | 50 156 229 478 Core 913 | 50 156 229 478 Treads . | . . . . Legs . | . . . . Wheels . | . . . . Hover . | . . . . Flight . | . . . . Fastest Speed 50 | 50 150 100 100 Average Speed 177 | 231 247 193 141 Slowest Speed 250 | 250 250 250 250 Overloaded Moves . | . . . . Propulsion Burnouts . | . . . . Robots Hopped . | . . . . Cave-ins Triggered . | . . . . Exploration Rate (%) 32 | 4 29 47 51 Regions Visited 3 Branch Regions 1 Pre-discovered Areas 1 | . . 1 . Known Exits Taken . | . . . . Unknown Exits Taken 3 | 1 1 1 . Scrap Searched . | . . . . Spaces Dug . | . . . . Terrain Destroyed 4 | . 4 . . Melee . | . . . . Projectile . | . . . . AOE 4 | . 4 . . Terrain Rammed . | . . . . Walls Destroyed . | . . . . Machines Disabled . | . . . . Actions | -11 -10 -10 -9 --------- Run | Jun Mat Min Mat Total 1243 | 63 176 265 739 Wait 126 | . 5 15 106 Move 910 | 49 155 228 478 Hop . | . . . . Pick Up 21 | 3 2 5 11 Fast Attach 26 | 5 7 1 13 Attach 11 | . . 5 6 Detach 5 | . . 1 4 Swap 2 | . . . 2 Drop 12 | . . . 12 Fire 130 | 6 7 10 107 Melee . | . . . . Ram . | . . . . Kick . | . . . . Crush . | . . . . Escape Stasis . | . . . . Rewire . | . . . . Trap . | . . . . Miscellaneous . | . . . . Route ------- -11/Junkyard -10/Materials -10/Mines -9/Materials (discovered 1 exit: [*Mat]) History --------- Turn | Location | Event 32 | -11/Junkyard | Discovered new exit (range 14) 143 | -11/Junkyard | Entered Materials 315 | -10/Materials | Build established: Mutant 514 | -10/Materials | Discovered new exit (range 6) 565 | -10/Materials | Entered Mines 583 | -10/Mines | Escorted by a lone wolf Derelict 591 | -10/Mines | Met a Derelict bent on vengeance 603 | -10/Mines | Learned location of Storage (-8) 612 | -10/Mines | Lost 3 parts (2p1w) 680 | -10/Mines | Assembled infested the area 882 | -10/Mines | Found the Drone Emporium 891 | -10/Mines | Learned 2 Materials zone layouts 1051 | -10/Mines | Discovered new exit (range 5) 1059 | -10/Mines | Entered Materials 1059 | -9/Materials | Evolved 2 slots: Utility x2 1163 | -9/Materials | Central database locked down 1455 | -9/Materials | Core integrity fell below 50% 1476 | -9/Materials | Lost 5 parts (3u2w) 1875 | -9/Materials | Discovered new exit (range 7) 2071 | -9/Materials | Build established: Scavenger-Mutant 2093 | -9/Materials | Core integrity fell below 20% 2147 | -9/Materials | Lost 4 parts (1p2u1w) 2181 | -9/Materials | Destroyed by G-34 Mercenary with Small Laser Last Messages --------------- 02111_ R-06 Scavenger destroyed. 02113_ Weight Redist. System destroyed. 02116_ Lgt. Ion Engine destroyed. 02116_ Imp. Assault Rifle destroyed. 02121_ Y-45 Defender destroyed. 02126_ R-06 Scavenger collects Beam Rifle. 02126_ Acquired Hvy. Assault Rifle. 02128_ Acquired Lgt. Assault Rifle. 02129_ R-06 Scavenger collects Heat Sink. 02132_ R-06 Scavenger collects Hvy. Assault Rifle. 02134_ K-01 Serf collects debris. 02140_ Acquired 43 matter. 02142_ Acquired Lgt. Nuclear Core. 02144_ Acquired 49 matter. 02155_ R-06 Scavenger collects Aluminum Leg. 02159_ S-10 Pest destroyed. 02168_ G-47 Trooper destroyed. 02174_ G-34 Mercenary destroyed. 02175_ Acquired 37 matter. 02177_ Acquired 4 matter. Map ----- +----------------------------------------------------+ | +??"""???????????????? "|??????????????????? | | ####??"""?????????????????"|"?????????????????? | | #?????????????????????????###?????????????????? | | #?????????????????????????????????????????????? | | #??????????????? ?????????????????????????????? | | #??????????????? ?????????????????????????????? | | #??????????????? ?????????????????????????????? | | #???????? ?????? ?????????????????????????????? | | ####??????????????? #????????????????????????????? | | ?? ???????????????? #??????? ?"??????????????????? | | ?????#????????? ?# ##????????"??????????????????? | | [[?????????? ????# ?? ???#?????????????????????? | | ?#?#??#??????# #????????????????????????????? | | #????#??????# #???#???? ???????????????????? | | #######?????#?????# #????????????????????????????? | | ??#?#????????# #?#??#######?????????????????? | | ########?#### ###### #?????????????????? | | # #?# % = #?#???????????????? | | " """ #"" #?# [ !% %= #?????????????????? | | " """ #"T #?# *% = ##????????????????? | | " """ #"" #?# =####### #?#????""?????????? | | #^ #?# ######## ##?????????????????? | | ??# #?# # # #??????????????????? | | #+######+####### # """ #= #??????????????????? | | #! """=g% #??????????????????? | | # """@#= #### ????? | | # # *! ????? | | ## ###+####T###### ! # ????? | | ## # ####????######## ###/#???????? | | ## #""" #####??????????# #???????????? | | ## #""" """#???#???????# #???????????? | | ## #""" T"#??????#????# [/ # ??????????? | | ## # """#??????????## [[ #???????????? | | ## # ####?????????#?# #???????????? | | ## #! #?????????????## #???????????? | | ## ####+##??????????????# #####???????????? | | ## #??# #???????????????# #???????????????? | | ## #### ###?????????????#!!!!!!#???????????????? | | ## # #?????????#!!!!!!#???????????????? | | =* #?????????########???????????????? | | ## # ##?????????????????????????????????? | | ###+#########?#??????????????????????????????????? | | #??????????????????????????????????????? | | """ """ #??????????????????????????????????????? | | """ """ #??????????????????????????????????????? | | """ """ #??????????????????????????????????????? | | ???????????????????????????????????????? | | ???????????????????????????????????????? | | ###########??????????????????????????????????????? | | | +----------------------------------------------------+ Best States ------------- Heat Dissipation 38 Energy Generation 10 Energy Capacity 250 Matter Stores 300 Matter Capacity 300 Sight Range 16 Robot Scan Range 14 Terrain Scan Range 16 Terrain Scan Density 10 Additional Mass Support 6 Armor Coverage 150 Evasion (%) 40 Item Schematics ----------------- None Robot Schematics ------------------ None Fabricated ------------ Nothing Alien Tech Used ----------------- None Achievements -------------- None Challenges ------------ None Game ------ Seed SpikedDiametricSpear Manual? 0 Play Time 00:16:48 Cumulative 45.8 hours Start 2023.12.02 @ 18:36:52 End 2023.12.02 @ 18:50:00 Sessions 1 Manual Loads 0 Difficulty Rogue Special Mode None Game No. 29 Rogue 29 Adventurer 0 Explorer 0 Win Type - Total 0 Types 0/0/0/0/0/0/0/0/0 Lore% 46 Gallery% 52 Achievement% 45 Wizard Run 0 Options --------- ASCII 0 Keyboard 1 Movement Numpad Keybinds 0 Fullscreen 1 Font 18/SmallcapsGlow Map View 76x50 Tactical HUD 1 Map Filters NONE Filters NONE Steam 1 RUN: bb7b2397-a044-4de6-9b87-7b490f8e6ac0